[Event "*** Titled Tuesday Blitz"]
[Site "Chess.com"]
[Date "2020.03.03"]
[Round "7"]
[White "Eliwood44"]
[Black "saraswathii"]
[Result "1-0"]
[WhiteElo "2309"]
[BlackElo "2217"]
[TimeControl "180+1"]
[EndTime "14:16:11 PST"]
[Termination "Eliwood44 won on time"]

1. Nf3 {[%clk 0:03:00.9]} 1... d5 {[%clk 0:02:55.2]} 2. c4 {[%clk 0:02:57.9]}
2... c6 {[%clk 0:02:54.2]} 3. d4 {[%clk 0:02:56.9]} 3... Bf5 {[%clk 0:02:51.9]}
4. cxd5 {[%clk 0:02:56.2]} 4... cxd5 {[%clk 0:02:44.7]} 5. Qb3 {[%clk
0:02:54.4]} 5... Qc7 {[%clk 0:02:37.3]} 6. Nc3 {[%clk 0:02:53.6]} 6... e6 {[%clk
0:02:27.4]} 7. Bf4 {[%clk 0:02:50.6]} 7... Qb6 {[%clk 0:02:13.9]} 8. e3 {[%clk
0:02:46.8]} 8... Nc6 {[%clk 0:02:08.9]} 9. Nb5 {[%clk 0:02:18.3]} 9... Bb4+
{[%clk 0:02:01.3]} 10. Nd2 {[%clk 0:02:18]} 10... Rc8 {[%clk 0:01:53.3]} 11. a3
{[%clk 0:02:13.6]} 11... Be7 {[%clk 0:01:44.4]} 12. Be2 {[%clk 0:02:09.3]} 12...
Nf6 {[%clk 0:01:40.7]} 13. Nd6+ {[%clk 0:02:03.6]} 13... Bxd6 {[%clk 0:01:36.7]}
14. Bxd6 {[%clk 0:02:03.8]} 14... Kd7 {[%clk 0:01:33.9]} 15. Bg3 {[%clk
0:01:57]} 15... Qxb3 {[%clk 0:01:31.7]} 16. Nxb3 {[%clk 0:01:56]} 16... b6
{[%clk 0:01:30.3]} 17. f3 {[%clk 0:01:56.1]} 17... Na5 {[%clk 0:01:24.4]} 18.
Nxa5 {[%clk 0:01:55.3]} 18... bxa5 {[%clk 0:01:23.3]} 19. Bb5+ {[%clk
0:01:47.5]} 19... Ke7 {[%clk 0:01:22.4]} 20. O-O {[%clk 0:01:47.4]} 20... Rc2
{[%clk 0:01:18.1]} 21. Ba4 {[%clk 0:01:42.8]} 21... Rxb2 {[%clk 0:01:15.7]} 22.
Rac1 {[%clk 0:01:40.5]} 22... Rb7 {[%clk 0:01:13.6]} 23. Rc5 {[%clk 0:01:39.1]}
23... Nd7 {[%clk 0:00:52.1]} 24. Rxa5 {[%clk 0:01:24.1]} 24... Rc8 {[%clk
0:00:45.1]} 25. h4 {[%clk 0:01:22.4]} 25... Rc3 {[%clk 0:00:43.8]} 26. Bb5
{[%clk 0:01:18.8]} 26... Rxe3 {[%clk 0:00:39.9]} 27. Rc1 {[%clk 0:01:16.5]}
27... Rb3 {[%clk 0:00:30.2]} 28. a4 {[%clk 0:01:09.8]} 28... Rb1 {[%clk
0:00:19.3]} 29. Rxb1 {[%clk 0:01:01.2]} 29... Bxb1 {[%clk 0:00:20.2]} 30. Kh2
{[%clk 0:01:00.8]} 30... Nb6 {[%clk 0:00:13.8]} 31. Bc6 {[%clk 0:00:59.3]} 31...
Nc4 {[%clk 0:00:11.1]} 32. Ra6 {[%clk 0:00:56.9]} 32... Rb2 {[%clk 0:00:10.5]}
33. Rxa7+ {[%clk 0:00:56.8]} 33... Kf6 {[%clk 0:00:10.9]} 34. Be8 {[%clk
0:00:52.4]} 34... Bg6 {[%clk 0:00:08.5]} 35. Bf4 {[%clk 0:00:49.3]} 35... h6
{[%clk 0:00:08.1]} 36. a5 {[%clk 0:00:47.1]} 36... Ra2 {[%clk 0:00:06.7]} 37. a6
{[%clk 0:00:46.9]} 37... e5 {[%clk 0:00:05.9]} 38. dxe5+ {[%clk 0:00:46.3]}
38... Nxe5 {[%clk 0:00:06.8]} 39. Bb5 {[%clk 0:00:39.5]} 39... Nxf3+ {[%clk
0:00:06.1]} 40. Kg3 {[%clk 0:00:39.5]} 40... Nd4 {[%clk 0:00:06]} 41. Bf1 {[%clk
0:00:38]} 41... Be4 {[%clk 0:00:05.3]} 42. Rb7 {[%clk 0:00:33.9]} 42... Nf5+
{[%clk 0:00:03.3]} 43. Kh2 {[%clk 0:00:33.1]} 43... d4 {[%clk 0:00:03.8]} 44.
Rb6+ {[%clk 0:00:32.2]} 44... Ke7 {[%clk 0:00:04.2]} 45. Rb7+ {[%clk 0:00:19.1]}
45... Ke6 {[%clk 0:00:01.9]} 46. Bc4+ {[%clk 0:00:17.9]} 1-0

[Event "*** Titled Tuesday Blitz"]
[Site "Chess.com"]
[Date "2020.03.03"]
[Round "7"]
[White "black_pawn_16"]
[Black "Witik"]
[Result "1-0"]
[WhiteElo "2238"]
[BlackElo "2635"]
[TimeControl "180+1"]
[EndTime "14:16:12 PST"]
[Termination "black_pawn_16 won on time"]

1. e4 {[%clk 0:03:00.9]} 1... c6 {[%clk 0:02:58.7]} 2. Nc3 {[%clk 0:03:00.5]}
2... d5 {[%clk 0:02:54.5]} 3. Nf3 {[%clk 0:03:00.4]} 3... dxe4 {[%clk
0:02:54.7]} 4. Nxe4 {[%clk 0:02:56.9]} 4... Nf6 {[%clk 0:02:55.6]} 5. Nxf6+
{[%clk 0:02:53.1]} 5... exf6 {[%clk 0:02:55.3]} 6. d4 {[%clk 0:02:51.4]} 6...
Bd6 {[%clk 0:02:55.1]} 7. Bd3 {[%clk 0:02:49.6]} 7... O-O {[%clk 0:02:55.1]} 8.
O-O {[%clk 0:02:47.9]} 8... Re8 {[%clk 0:02:55.3]} 9. Be3 {[%clk 0:02:41.4]}
9... Nd7 {[%clk 0:02:55]} 10. c4 {[%clk 0:02:38.6]} 10... Nf8 {[%clk 0:02:54.8]}
11. Rc1 {[%clk 0:02:34.7]} 11... Ng6 {[%clk 0:02:54.1]} 12. h3 {[%clk 0:02:31]}
12... Be6 {[%clk 0:02:53.1]} 13. Re1 {[%clk 0:02:28.2]} 13... Qd7 {[%clk
0:02:51.9]} 14. Bf1 {[%clk 0:02:21.6]} 14... Rad8 {[%clk 0:02:50.5]} 15. Qb3
{[%clk 0:02:17.6]} 15... Bb8 {[%clk 0:02:35.5]} 16. Rcd1 {[%clk 0:02:14.7]}
16... h5 {[%clk 0:02:24]} 17. Bc1 {[%clk 0:02:07.5]} 17... h4 {[%clk 0:02:15.1]}
18. d5 {[%clk 0:02:03]} 18... cxd5 {[%clk 0:01:54.6]} 19. cxd5 {[%clk
0:02:03.9]} 19... Bf5 {[%clk 0:01:55]} 20. Rxe8+ {[%clk 0:01:59.4]} 20... Qxe8
{[%clk 0:01:55.1]} 21. Qxb7 {[%clk 0:01:56.8]} 21... Ne5 {[%clk 0:00:56.5]} 22.
Nd4 {[%clk 0:01:55.9]} 22... Be4 {[%clk 0:00:49.8]} 23. Be3 {[%clk 0:01:26.2]}
23... Bxd5 {[%clk 0:00:47.4]} 24. Qb5 {[%clk 0:01:20.5]} 24... Bxa2 {[%clk
0:00:24.4]} 25. Qxe8+ {[%clk 0:01:15.6]} 25... Rxe8 {[%clk 0:00:25.3]} 26. b3
{[%clk 0:01:15.9]} 26... Rd8 {[%clk 0:00:17]} 27. Ra1 {[%clk 0:01:13.2]} 27...
Rxd4 {[%clk 0:00:17.2]} 28. Bxd4 {[%clk 0:01:08.7]} 28... Bxb3 {[%clk
0:00:17.8]} 29. Bxa7 {[%clk 0:01:08.6]} 29... Bxa7 {[%clk 0:00:18.2]} 30. Rxa7
{[%clk 0:01:05.9]} 30... g5 {[%clk 0:00:18.6]} 31. Ra5 {[%clk 0:00:59.5]} 31...
Kg7 {[%clk 0:00:18.2]} 32. g3 {[%clk 0:00:57]} 32... Bc2 {[%clk 0:00:11.2]} 33.
Bg2 {[%clk 0:00:54.8]} 33... hxg3 {[%clk 0:00:09.1]} 34. fxg3 {[%clk 0:00:52.6]}
34... Bg6 {[%clk 0:00:07.5]} 35. Kf2 {[%clk 0:00:49.6]} 35... Nd3+ {[%clk
0:00:07.3]} 36. Ke3 {[%clk 0:00:46.2]} 36... Ne5 {[%clk 0:00:08.2]} 37. Ra1
{[%clk 0:00:42.5]} 37... Nc4+ {[%clk 0:00:08.1]} 38. Kd4 {[%clk 0:00:40]} 38...
Nd6 {[%clk 0:00:08.7]} 39. g4 {[%clk 0:00:36.9]} 39... f5 {[%clk 0:00:09.1]} 40.
Ra5 {[%clk 0:00:32.1]} 40... fxg4 {[%clk 0:00:07.8]} 41. hxg4 {[%clk 0:00:29.2]}
41... Kh6 {[%clk 0:00:04.7]} 42. Re5 {[%clk 0:00:24.3]} 1-0

[Event "*** Titled Tuesday Blitz"]
[Site "Chess.com"]
[Date "2020.03.03"]
[Round "7"]
[White "Sebastian"]
[Black "Vaathi_Coming"]
[Result "1-0"]
[WhiteElo "3011"]
[BlackElo "2823"]
[TimeControl "180+1"]
[EndTime "14:16:13 PST"]
[Termination "Sebastian won on time"]

1. d4 {[%clk 0:03:00.9]} 1... Nf6 {[%clk 0:02:59.6]} 2. Nf3 {[%clk 0:03:01.3]}
2... e6 {[%clk 0:02:59.1]} 3. e3 {[%clk 0:03:01.6]} 3... b6 {[%clk 0:02:58.8]}
4. Bd3 {[%clk 0:03:01.9]} 4... Bb7 {[%clk 0:02:59.2]} 5. O-O {[%clk 0:03:02.5]}
5... d5 {[%clk 0:02:59]} 6. b3 {[%clk 0:03:02.9]} 6... Nbd7 {[%clk 0:02:59.3]}
7. c4 {[%clk 0:03:02.5]} 7... Bd6 {[%clk 0:02:57.8]} 8. cxd5 {[%clk 0:03:02.3]}
8... exd5 {[%clk 0:02:57.6]} 9. Ba3 {[%clk 0:03:02.6]} 9... c5 {[%clk
0:02:51.1]} 10. Nc3 {[%clk 0:03:02.1]} 10... a6 {[%clk 0:02:50.9]} 11. Rc1
{[%clk 0:03:01.6]} 11... O-O {[%clk 0:02:50.2]} 12. Qe2 {[%clk 0:03:00.3]} 12...
Qe7 {[%clk 0:02:49.2]} 13. Rfd1 {[%clk 0:02:54.7]} 13... Rfe8 {[%clk 0:02:47.9]}
14. Bf5 {[%clk 0:02:47.2]} 14... Bc6 {[%clk 0:02:00.6]} 15. Bb2 {[%clk
0:02:26.7]} 15... Rad8 {[%clk 0:01:50.6]} 16. g3 {[%clk 0:02:26.4]} 16... g6
{[%clk 0:01:46.6]} 17. Bh3 {[%clk 0:02:26]} 17... Ne4 {[%clk 0:01:30.8]} 18. Bg2
{[%clk 0:02:22.7]} 18... Ndf6 {[%clk 0:01:24]} 19. dxc5 {[%clk 0:02:08.2]} 19...
bxc5 {[%clk 0:01:20.8]} 20. Nxe4 {[%clk 0:02:05.8]} 20... Nxe4 {[%clk
0:01:18.3]} 21. Qc2 {[%clk 0:02:05.3]} 21... f6 {[%clk 0:01:03.8]} 22. Ne1
{[%clk 0:01:55.4]} 22... Bb7 {[%clk 0:00:59.5]} 23. Nd3 {[%clk 0:01:54.2]} 23...
g5 {[%clk 0:00:54.6]} 24. Ba1 {[%clk 0:01:49.5]} 24... h5 {[%clk 0:00:48.8]} 25.
Qb2 {[%clk 0:01:48.2]} 25... Kf7 {[%clk 0:00:46]} 26. Qc2 {[%clk 0:01:43]} 26...
h4 {[%clk 0:00:42.2]} 27. Ne1 {[%clk 0:01:25.5]} 27... hxg3 {[%clk 0:00:38.7]}
28. hxg3 {[%clk 0:01:25.5]} 28... Rh8 {[%clk 0:00:31.1]} 29. Nf3 {[%clk
0:01:22]} 29... Rh6 {[%clk 0:00:29.7]} 30. b4 {[%clk 0:01:15.4]} 30... cxb4
{[%clk 0:00:18.6]} 31. Qb3 {[%clk 0:01:12.8]} 31... Rdh8 {[%clk 0:00:16.1]} 32.
Rxd5 {[%clk 0:01:10.1]} 32... Bxd5 {[%clk 0:00:15.5]} 33. Qxd5+ {[%clk
0:01:10.5]} 33... Kg7 {[%clk 0:00:13.8]} 34. Nd4 {[%clk 0:01:09.8]} 34... Nxg3
{[%clk 0:00:14]} 35. Ne6+ {[%clk 0:01:09.9]} 35... Kf7 {[%clk 0:00:08.3]} 36.
Nf4+ {[%clk 0:00:50.9]} 36... Kg7 {[%clk 0:00:04]} 37. Qxg5+ {[%clk 0:00:47.3]}
37... Kh7 {[%clk 0:00:04.4]} 38. Qxg3 {[%clk 0:00:44.8]} 38... Rg8 {[%clk
0:00:04.6]} 39. Qf3 {[%clk 0:00:33.8]} 39... Qg7 {[%clk 0:00:02.7]} 40. Qe4+
{[%clk 0:00:28.2]} 40... Kh8 {[%clk 0:00:02.6]} 41. Kf1 {[%clk 0:00:27]} 41...
Bxf4 {[%clk 0:00:02]} 42. exf4 {[%clk 0:00:25.1]} 42... Rg6 {[%clk 0:00:02.4]}
43. Rc6 {[%clk 0:00:23.2]} 1-0

[Event "*** Titled Tuesday Blitz"]
[Site "Chess.com"]
[Date "2020.03.03"]
[Round "7"]
[White "Hasangatin_Ramil"]
[Black "Marcus_Harvey"]
[Result "0-1"]
[WhiteElo "2563"]
[BlackElo "2744"]
[TimeControl "180+1"]
[EndTime "14:16:13 PST"]
[Termination "Marcus_Harvey won on time"]

1. e4 {[%clk 0:03:00.9]} 1... e6 {[%clk 0:02:59.4]} 2. d3 {[%clk 0:03:00.6]}
2... c5 {[%clk 0:02:59]} 3. Nf3 {[%clk 0:02:59.7]} 3... Nc6 {[%clk 0:02:59.6]}
4. g3 {[%clk 0:03:00.2]} 4... d6 {[%clk 0:03:00.2]} 5. Bg2 {[%clk 0:03:00]} 5...
g6 {[%clk 0:03:00.8]} 6. d4 {[%clk 0:02:55]} 6... cxd4 {[%clk 0:03:01.4]} 7.
Nxd4 {[%clk 0:02:55.5]} 7... Bg7 {[%clk 0:03:00.1]} 8. Nb5 {[%clk 0:02:55.2]}
8... Bf8 {[%clk 0:02:27.7]} 9. Bf4 {[%clk 0:02:53.7]} 9... e5 {[%clk 0:02:24.5]}
10. Be3 {[%clk 0:02:53.4]} 10... a6 {[%clk 0:02:21.4]} 11. N5c3 {[%clk
0:02:53.8]} 11... Nf6 {[%clk 0:02:20.9]} 12. O-O {[%clk 0:02:48.3]} 12... Be7
{[%clk 0:02:18.5]} 13. Nd5 {[%clk 0:02:40.6]} 13... Nxd5 {[%clk 0:02:15.5]} 14.
exd5 {[%clk 0:02:41.5]} 14... Nd4 {[%clk 0:02:03.7]} 15. c4 {[%clk 0:02:31.2]}
15... Nf5 {[%clk 0:02:00]} 16. Bd2 {[%clk 0:02:25.6]} 16... O-O {[%clk
0:01:59.4]} 17. Nc3 {[%clk 0:02:25.7]} 17... Nd4 {[%clk 0:01:54.3]} 18. b4
{[%clk 0:02:06]} 18... f5 {[%clk 0:01:49.2]} 19. Be3 {[%clk 0:01:56.7]} 19... a5
{[%clk 0:01:46.1]} 20. b5 {[%clk 0:01:45.1]} 20... Bf6 {[%clk 0:01:40.5]} 21. f4
{[%clk 0:01:38]} 21... b6 {[%clk 0:01:15.6]} 22. Na4 {[%clk 0:01:34.5]} 22...
Rb8 {[%clk 0:01:12.5]} 23. Rc1 {[%clk 0:01:30.9]} 23... g5 {[%clk 0:00:57.1]}
24. Kh1 {[%clk 0:01:28.2]} 24... gxf4 {[%clk 0:00:52.9]} 25. gxf4 {[%clk
0:01:27.7]} 25... Kh8 {[%clk 0:00:53.2]} 26. Qh5 {[%clk 0:00:51.2]} 26... Qe7
{[%clk 0:00:38.9]} 27. Nc3 {[%clk 0:00:46.3]} 27... Qg7 {[%clk 0:00:26.6]} 28.
fxe5 {[%clk 0:00:42.4]} 28... dxe5 {[%clk 0:00:25.3]} 29. Bxd4 {[%clk
0:00:42.6]} 29... exd4 {[%clk 0:00:25.1]} 30. Ne2 {[%clk 0:00:43.3]} 30... d3
{[%clk 0:00:19.1]} 31. Nf4 {[%clk 0:00:43.3]} 31... d2 {[%clk 0:00:19.4]} 32.
Rcd1 {[%clk 0:00:42.7]} 32... Bc3 {[%clk 0:00:18.2]} 33. Rf3 {[%clk 0:00:41.7]}
33... Rg8 {[%clk 0:00:10.7]} 34. Rg3 {[%clk 0:00:36.7]} 34... Qe5 {[%clk
0:00:08.8]} 35. Rxg8+ {[%clk 0:00:10.2]} 35... Kxg8 {[%clk 0:00:09.7]} 36. Qg5+
{[%clk 0:00:10.3]} 36... Kf7 {[%clk 0:00:06.8]} 37. Bf3 {[%clk 0:00:06.1]} 37...
Qf6 {[%clk 0:00:03.5]} 38. Bh5+ {[%clk 0:00:06.1]} 38... Ke7 {[%clk 0:00:04]}
39. Re1+ {[%clk 0:00:01.9]} 39... dxe1=Q+ {[%clk 0:00:03.6]} 40. Kg2 {[%clk
0:00:01.8]} 40... Qxg5+ {[%clk 0:00:03.7]} 0-1

[Event "*** Titled Tuesday Blitz"]
[Site "Chess.com"]
[Date "2020.03.03"]
[Round "7"]
[White "M1711"]
[Black "SahajGrover"]
[Result "1-0"]
[WhiteElo "2557"]
[BlackElo "2711"]
[TimeControl "180+1"]
[EndTime "14:16:18 PST"]
[Termination "M1711 won by checkmate"]

1. d4 {[%clk 0:03:00.9]} 1... Nf6 {[%clk 0:02:58.2]} 2. Bg5 {[%clk 0:03:00.4]}
2... e6 {[%clk 0:02:55.3]} 3. e4 {[%clk 0:03:00.4]} 3... h6 {[%clk 0:02:55.3]}
4. Bxf6 {[%clk 0:03:00.9]} 4... Qxf6 {[%clk 0:02:56.2]} 5. c3 {[%clk 0:03:01.5]}
5... d6 {[%clk 0:02:47.3]} 6. Bd3 {[%clk 0:03:01.6]} 6... c5 {[%clk 0:02:37.1]}
7. Ne2 {[%clk 0:02:52.6]} 7... cxd4 {[%clk 0:02:35.5]} 8. cxd4 {[%clk
0:02:52.2]} 8... Nc6 {[%clk 0:02:32.9]} 9. Nbc3 {[%clk 0:02:50.2]} 9... Be7
{[%clk 0:02:21.6]} 10. d5 {[%clk 0:02:38.2]} 10... exd5 {[%clk 0:02:15.8]} 11.
Nxd5 {[%clk 0:02:33.1]} 11... Qg5 {[%clk 0:02:00.4]} 12. Nc7+ {[%clk 0:02:29.1]}
12... Kd8 {[%clk 0:02:00.8]} 13. Nxa8 {[%clk 0:02:29.4]} 13... Qxg2 {[%clk
0:01:55.1]} 14. Rg1 {[%clk 0:02:28.7]} 14... Qxh2 {[%clk 0:01:54.3]} 15. Qb3
{[%clk 0:02:01.3]} 15... Bg5 {[%clk 0:01:34.2]} 16. Qxf7 {[%clk 0:01:52.1]}
16... Bd7 {[%clk 0:01:19.7]} 17. Qxg7 {[%clk 0:01:32.4]} 17... Re8 {[%clk
0:01:18.3]} 18. f4 {[%clk 0:01:23.4]} 18... Qh4+ {[%clk 0:00:59.8]} 19. Kd1
{[%clk 0:01:14.5]} 19... Bxf4 {[%clk 0:00:35.4]} 20. Nxf4 {[%clk 0:00:51.2]}
20... Qxf4 {[%clk 0:00:36.1]} 21. Qg3 {[%clk 0:00:46.3]} 21... Qf6 {[%clk
0:00:35.9]} 22. Kc1 {[%clk 0:00:25.8]} 22... Nb4 {[%clk 0:00:09]} 23. a3 {[%clk
0:00:25.7]} 23... Nc6 {[%clk 0:00:07]} 24. Rf1 {[%clk 0:00:22.9]} 24... Qd4
{[%clk 0:00:06.6]} 25. Kc2 {[%clk 0:00:15.5]} 25... Re5 {[%clk 0:00:06.1]} 26.
Rf8+ {[%clk 0:00:14.9]} 26... Be8 {[%clk 0:00:04.7]} 27. Qh4+ {[%clk 0:00:11.7]}
27... Ne7 {[%clk 0:00:02.4]} 28. Rd1 {[%clk 0:00:07.4]} 28... Rc5+ {[%clk
0:00:02.9]} 29. Kb1 {[%clk 0:00:07.3]} 29... Rc8 {[%clk 0:00:03.7]} 30. Bc2
{[%clk 0:00:05.5]} 30... Qe5 {[%clk 0:00:03.2]} 31. Rf6 {[%clk 0:00:03.9]} 31...
Rxc2 {[%clk 0:00:02.2]} 32. Rfxd6+ {[%clk 0:00:03.7]} 32... Kc8 {[%clk
0:00:01.6]} 33. Rd8# {[%clk 0:00:04]} 1-0

[Event "*** Titled Tuesday Blitz"]
[Site "Chess.com"]
[Date "2020.03.03"]
[Round "7"]
[White "Rubinstein_Akiba"]
[Black "SCIM"]
[Result "1-0"]
[WhiteElo "2389"]
[BlackElo "2461"]
[TimeControl "180+1"]
[EndTime "14:16:20 PST"]
[Termination "Rubinstein_Akiba won on time"]

1. e4 {[%clk 0:03:00.9]} 1... c5 {[%clk 0:02:58.3]} 2. Be2 {[%clk 0:03:00.3]}
2... Nc6 {[%clk 0:02:56.1]} 3. f4 {[%clk 0:02:59.6]} 3... g6 {[%clk 0:02:54.5]}
4. Nf3 {[%clk 0:02:59.8]} 4... Bg7 {[%clk 0:02:55.4]} 5. O-O {[%clk 0:02:59.7]}
5... d6 {[%clk 0:02:45.2]} 6. d3 {[%clk 0:02:55.4]} 6... Bg4 {[%clk 0:02:44]} 7.
Qe1 {[%clk 0:02:52]} 7... Nf6 {[%clk 0:02:28]} 8. Kh1 {[%clk 0:02:45]} 8... O-O
{[%clk 0:02:26.7]} 9. Qh4 {[%clk 0:02:44.3]} 9... Bxf3 {[%clk 0:02:25.6]} 10.
Bxf3 {[%clk 0:02:45.2]} 10... Nd4 {[%clk 0:02:25.5]} 11. Bd1 {[%clk 0:02:44.4]}
11... e6 {[%clk 0:02:18]} 12. c3 {[%clk 0:02:42.7]} 12... Nc6 {[%clk 0:02:12.8]}
13. Be3 {[%clk 0:02:25.7]} 13... Nd7 {[%clk 0:02:06.5]} 14. Qh3 {[%clk
0:02:24.3]} 14... f5 {[%clk 0:02:03]} 15. Nd2 {[%clk 0:02:23.8]} 15... Re8
{[%clk 0:01:56.6]} 16. g4 {[%clk 0:02:19.8]} 16... Rc8 {[%clk 0:01:41.5]} 17.
Rg1 {[%clk 0:02:02.2]} 17... fxe4 {[%clk 0:01:37.2]} 18. dxe4 {[%clk 0:02:00.4]}
18... d5 {[%clk 0:01:36.2]} 19. Bb3 {[%clk 0:01:56.9]} 19... c4 {[%clk
0:01:32.1]} 20. Bc2 {[%clk 0:01:53.7]} 20... d4 {[%clk 0:01:30.1]} 21. cxd4
{[%clk 0:01:51.1]} 21... Nxd4 {[%clk 0:01:31]} 22. Bd1 {[%clk 0:01:49.5]} 22...
c3 {[%clk 0:01:27.2]} 23. bxc3 {[%clk 0:01:44.4]} 23... Rxc3 {[%clk 0:01:28.1]}
24. e5 {[%clk 0:01:41.5]} 24... Nc5 {[%clk 0:01:16]} 25. Rg3 {[%clk 0:01:31.3]}
25... Qd5+ {[%clk 0:01:11.3]} 26. Kg1 {[%clk 0:01:27.8]} 26... Rf8 {[%clk
0:00:54.2]} 27. Qg2 {[%clk 0:01:14.7]} 27... Qd7 {[%clk 0:00:43.2]} 28. Ne4
{[%clk 0:00:49.6]} 28... Nxe4 {[%clk 0:00:36.2]} 29. Qxe4 {[%clk 0:00:50.5]}
29... Nc6 {[%clk 0:00:30.5]} 30. Bb3 {[%clk 0:00:49.8]} 30... Rd8 {[%clk
0:00:26.5]} 31. f5 {[%clk 0:00:33.2]} 31... Rxb3 {[%clk 0:00:21.7]} 32. axb3
{[%clk 0:00:31.3]} 32... Bxe5 {[%clk 0:00:20.3]} 33. fxe6 {[%clk 0:00:27.1]}
33... Qxe6 {[%clk 0:00:16.2]} 34. Re1 {[%clk 0:00:22.8]} 34... Qd6 {[%clk
0:00:11.5]} 35. Rg2 {[%clk 0:00:21.2]} 35... Nd4 {[%clk 0:00:11]} 36. Rd2 {[%clk
0:00:17.8]} 36... Qf6 {[%clk 0:00:06.5]} 37. Bxd4 {[%clk 0:00:16.5]} 37... Bxd4+
{[%clk 0:00:07]} 38. Kg2 {[%clk 0:00:16.8]} 38... Kg7 {[%clk 0:00:03.7]} 39.
Red1 {[%clk 0:00:15.8]} 39... Bb6 {[%clk 0:00:02.4]} 40. Qxb7+ {[%clk
0:00:15.2]} 40... Kh6 {[%clk 0:00:01.5]} 41. Qe4 {[%clk 0:00:13.4]} 1-0

[Event "*** Titled Tuesday Blitz"]
[Site "Chess.com"]
[Date "2020.03.03"]
[Round "7"]
[White "Enriquack"]
[Black "SubrotaBiswas"]
[Result "1-0"]
[WhiteElo "2366"]
[BlackElo "2442"]
[TimeControl "180+1"]
[EndTime "14:16:23 PST"]
[Termination "Enriquack won by checkmate"]

1. e4 {[%clk 0:03:00.9]} 1... e6 {[%clk 0:02:58.8]} 2. d4 {[%clk 0:03:00.6]}
2... d5 {[%clk 0:02:59.7]} 3. Nc3 {[%clk 0:03:00.9]} 3... Nf6 {[%clk 0:02:59]}
4. Bg5 {[%clk 0:03:00.5]} 4... Bb4 {[%clk 0:02:58.9]} 5. Ne2 {[%clk 0:02:59.4]}
5... dxe4 {[%clk 0:02:57.5]} 6. a3 {[%clk 0:02:59.3]} 6... Be7 {[%clk
0:02:56.1]} 7. Bxf6 {[%clk 0:02:54.2]} 7... Bxf6 {[%clk 0:02:56.4]} 8. Nxe4
{[%clk 0:02:53.3]} 8... Nc6 {[%clk 0:02:57.3]} 9. Nxf6+ {[%clk 0:02:48.2]} 9...
Qxf6 {[%clk 0:02:57.7]} 10. Qd2 {[%clk 0:02:48.4]} 10... e5 {[%clk 0:02:57.2]}
11. d5 {[%clk 0:02:47]} 11... Ne7 {[%clk 0:02:55.1]} 12. Nc3 {[%clk 0:02:45]}
12... O-O {[%clk 0:02:53.7]} 13. O-O-O {[%clk 0:02:35.5]} 13... Bf5 {[%clk
0:02:45.9]} 14. Bc4 {[%clk 0:02:17.8]} 14... Rfc8 {[%clk 0:02:44.4]} 15. Rhe1
{[%clk 0:02:13.7]} 15... Rd8 {[%clk 0:02:42]} 16. Qe3 {[%clk 0:02:09]} 16... Ng6
{[%clk 0:02:39.1]} 17. g3 {[%clk 0:01:42]} 17... c6 {[%clk 0:02:31.5]} 18. h4
{[%clk 0:01:27.1]} 18... cxd5 {[%clk 0:02:23.3]} 19. Nxd5 {[%clk 0:01:25.5]}
19... Qc6 {[%clk 0:02:23.2]} 20. Qb3 {[%clk 0:00:42.7]} 20... Rac8 {[%clk
0:02:17.6]} 21. Ne3 {[%clk 0:00:42.1]} 21... Be6 {[%clk 0:01:58.6]} 22. Bxe6
{[%clk 0:00:37.5]} 22... fxe6 {[%clk 0:01:59]} 23. h5 {[%clk 0:00:35.3]} 23...
Ne7 {[%clk 0:01:58.1]} 24. h6 {[%clk 0:00:34.5]} 24... gxh6 {[%clk 0:01:51.9]}
25. Ng4 {[%clk 0:00:33.1]} 25... Rd5 {[%clk 0:01:40.8]} 26. Nf6+ {[%clk
0:00:28.4]} 26... Kg7 {[%clk 0:01:36.5]} 27. Nxd5 {[%clk 0:00:28.4]} 27... Nxd5
{[%clk 0:01:34.5]} 28. Rxe5 {[%clk 0:00:27.1]} 28... Qc5 {[%clk 0:01:27.1]} 29.
Rxe6 {[%clk 0:00:22.1]} 29... Qxf2 {[%clk 0:01:25.6]} 30. Rxd5 {[%clk
0:00:18.9]} 30... Qf7 {[%clk 0:00:58.2]} 31. Re1 {[%clk 0:00:14]} 31... Qf2
{[%clk 0:00:54.4]} 32. Red1 {[%clk 0:00:12.8]} 32... Kh8 {[%clk 0:00:50.4]} 33.
Qd3 {[%clk 0:00:12.1]} 33... Qf8 {[%clk 0:00:43.1]} 34. Qd4+ {[%clk 0:00:12]}
34... Kg8 {[%clk 0:00:41.5]} 35. Rd7 {[%clk 0:00:11.5]} 35... Qf5 {[%clk
0:00:39.2]} 36. c3 {[%clk 0:00:10.9]} 36... Qg6 {[%clk 0:00:36.4]} 37. Qd3
{[%clk 0:00:09.3]} 37... Qg5+ {[%clk 0:00:36.2]} 38. Kb1 {[%clk 0:00:08.8]}
38... Qg6 {[%clk 0:00:36.1]} 39. Qxg6+ {[%clk 0:00:08.8]} 39... hxg6 {[%clk
0:00:37]} 40. Rxb7 {[%clk 0:00:09.3]} 40... h5 {[%clk 0:00:36.2]} 41. Rxa7
{[%clk 0:00:08.7]} 41... g5 {[%clk 0:00:35.4]} 42. Ra5 {[%clk 0:00:06.9]} 42...
h4 {[%clk 0:00:35.4]} 43. Rxg5+ {[%clk 0:00:07]} 43... Kh7 {[%clk 0:00:35.8]}
44. gxh4 {[%clk 0:00:07.8]} 44... Kh6 {[%clk 0:00:36.2]} 45. Rd6+ {[%clk
0:00:08]} 45... Kh7 {[%clk 0:00:36.2]} 46. Rd1 {[%clk 0:00:08.1]} 46... Rd8
{[%clk 0:00:36.4]} 47. Rc1 {[%clk 0:00:08.3]} 47... Rd4 {[%clk 0:00:35.8]} 48.
cxd4 {[%clk 0:00:07.7]} 48... Kh6 {[%clk 0:00:36]} 49. Rc6+ {[%clk 0:00:06.5]}
49... Kh7 {[%clk 0:00:36.6]} 50. Rb5 {[%clk 0:00:05.9]} 50... Kh8 {[%clk
0:00:36.8]} 51. Rb7 {[%clk 0:00:05.8]} 51... Kg8 {[%clk 0:00:37]} 52. Rc8#
{[%clk 0:00:06.3]} 1-0